bitfinex-derivatives/quotes_ETHF0:USTF0_20251001
["timestamp","ask_amount","ask_price","bid_price","bid_amount"]
[1759356225150,1.3083,4312.6,4312.5,4.5143]
[1759356225650,1.8206,4312.6,4312.5,4.5143]
[1759356225843,2.24076829,4312.6,4312.5,3.2108114]
[1759356226153,2.24076829,4312.6,4312.5,0.2410114]
[1759356227246,2.24076829,4312.6,4312.5,0.0030114]
[1759356227444,2.24076829,4312.6,4312.5,0.7791114]
[1759356227841,1.82358829,4312.6,4312.5,1.3095114]
[1759356228047,0.00298829,4312.6,4312.5,5.3100114]
[1759356228247,2.15008829,4312.6,4312.5,5.3100114]
[1759356230149,2.15008829,4312.6,4312.5,10.6159114]
[1759356232161,3.45838829,4312.6,4312.5,10.3100114]
[1759356234060,3.95968829,4312.6,4312.5,4.5173114]
[1759356235449,3.95968829,4312.6,4312.5,3.2108114]
[1759356235450,4.37686829,4312.6,4312.5,3.2108114]
[1759356235646,4.37686829,4312.6,4312.5,3.4488114]
[1759356237555,3.95968829,4312.6,4312.5,4.5177114]
[1759356237763,2.15008829,4312.6,4312.5,5.2824114]
[1759356238562,2.91838829,4312.6,4312.5,5.2824114]
[1759356238760,3.42918829,4312.6,4312.5,5.2824114]
[1759356238961,3.93048829,4312.6,4312.5,4.5177114]
[1759356239164,4.34766829,4312.6,4312.5,4.2797114]
[1759356239363,4.34766829,4312.6,4312.5,4.5177114]
[1759356240561,3.93048829,4312.6,4312.5,4.5177114]
[1759356241260,4.34766829,4312.6,4312.5,3.9708114]
[1759356241464,4.34766829,4312.6,4312.5,3.2108114]
[1759356241665,4.34766829,4312.6,4312.5,3.4488114]
[1759356242361,3.93048829,4312.6,4312.5,3.9708114]
[1759356242664,3.93048829,4312.6,4312.5,4.5177114]
[1759356242866,2.15008829,4312.6,4312.5,10.5883114]
[1759356243459,0.7683,4313.6,4313.5,1.8336]
[1759356243660,0.7683,4313.6,4313.5,2.0716]
[1759356243856,0.7683,4313.6,4313.5,1.8336]
[1759356244064,2.1975,4313.4,4313.3,3.2078]
[1759356244265,2.1975,4313.4,4313.3,3.9678]
[1759356244469,2.19969784,4313.4,4313.3,44.7678]
[1759356250069,2.19969784,4313.4,4313.3,3.9678]
[1759356250271,2.19969784,4313.4,4313.3,0.76]
[1759356251872,2.19969784,4313.4,4313.3,1.3069]
[1759356252170,0.00219784,4313.4,4313.3,2.0716]
[1759356252365,0.00219784,4313.4,4313.3,4.2767]
[1759356252366,2.19969784,4313.4,4313.3,4.2767]
[1759356252664,2.19969784,4313.4,4313.3,4.5147]
[1759356252861,1.78259784,4313.4,4313.3,4.5147]
[1759356253065,0.77049784,4313.4,4313.3,5.2794]
[1759356255673,1.18759784,4313.4,4313.3,5.2794]
[1759356255873,0.77049784,4313.4,4313.3,5.2794]
[1759356256178,1.69839784,4313.4,4313.3,5.2794]
[1759356256869,2.19969784,4313.4,4313.3,4.5147]
[1759356257371,1.78259784,4313.4,4313.3,5.2794]
[1759356257572,2.19969784,4313.4,4313.3,5.2794]
[1759356257973,1.78259784,4313.4,4313.3,5.2794]
[1759356258367,1.28129784,4313.4,4313.3,5.2794]
[1759356259262,0.77049784,4313.4,4313.3,5.2794]
[1759356259467,0.00219784,4313.4,4313.3,5.2794]
[1759356261572,0.00219784,4313.4,4313.3,46.0794]
[1759356263767,0.00219784,4313.4,4313.3,51.0794]
[1759356264568,0.0026,4313.6,4313.5,1.1037]
[1759356264767,0.0157,4313.8,4313.7,0.9998]
[1759356264971,0.0157,4313.8,4313.7,1.9879]
[1759356265168,0.417,4314.4,4313.7,1.2378]
[1759356265472,2.2559,4314.4,4314.3,4.2076]
[1759356265768,2.25824081,4314.4,4314.3,4.2076]
[1759356265966,2.25824081,4314.4,4314.3,3.4458]
[1759356266774,1.84124081,4314.4,4314.3,3.9461]
[1759356266966,2.25824081,4314.4,4314.3,3.9461]
[1759356269472,2.25824081,4314.4,4314.3,3.4458]
[1759356269673,2.25824081,4314.4,4314.3,3.9461]
[1759356270272,0.75714081,4314.4,4314.3,5.1957]
[1759356270663,0.00234081,4314.4,4314.3,5.1957]
[1759356271269,0.75714081,4314.4,4314.3,5.1957]
[1759356271476,1.29534081,4314.4,4314.3,5.1957]
[1759356272976,3.02983874,4314.4,4314.3,4.2076]
[1759356273178,3.02983874,4314.4,4314.3,4.4456]
[1759356273581,2.61283874,4314.4,4314.3,4.4456]
[1759356274176,0.00234081,4314.4,4314.3,5.1957]
[1759356274574,0.00234081,4314.4,4314.3,10.96729793]
[1759356274880,0.0163,4314.7,4314.6,1.7475]
[1759356275078,0.0163,4314.7,4314.6,42.7855]
[1759356275385,1.293,4314.9,4314.8,0.9998]
[1759356275689,1.293,4314.9,4314.8,1.9855]
[1759356275977,1.29571936,4314.9,4314.8,1.9855]
[1759356276175,2.61321729,4314.9,4314.8,0.9998]
[1759356276375,3.03016729,4314.9,4314.8,0.5003]
[1759356276576,1.0841,4314.7,4314.6,40.8]
[1759356276773,1.8389,4314.7,4314.6,41.038]
[1759356277174,2.25587,4314.7,4314.6,41.038]
[1759356277482,2.25587,4314.7,4314.6,0.238]
[1759356278475,1.8389,4314.7,4314.6,1.2378]
[1759356278785,2.25587,4314.7,4314.6,0.9998]
[1759356278976,1.8389,4314.7,4314.6,1.2378]
[1759356279181,1.293,4314.7,4314.6,1.9855]
[1759356280481,2.25587,4314.7,4314.6,1.2378]
[1759356280982,1.8389,4314.7,4314.6,1.2378]
[1759356281188,0.01941936,4314.9,4314.8,1.7475]
[1759356281382,0.00271936,4314.9,4314.8,1.9855]
[1759356282483,1.29571936,4314.9,4314.8,1.9855]
[1759356282686,1.29571936,4314.9,4314.8,5.1933]
[1759356282894,1.29571936,4314.9,4314.8,4.9553]
[1759356283095,1.29571936,4314.9,4314.8,5.1933]
[1759356283693,0.75751936,4314.9,4314.8,5.1933]
[1759356285004,0.00271936,4314.9,4314.8,5.1933]
[1759356287401,1.29571936,4314.9,4314.8,4.9553]
[1759356287602,1.29571936,4314.9,4314.8,5.1933]
[1759356287804,1.84161936,4314.9,4314.8,4.2076]
[1759356288003,1.84161936,4314.9,4314.8,4.4456]
[1759356288402,1.84161936,4314.9,4314.8,5.1933]
[1759356289806,1.84161936,4314.9,4314.8,4.4456]
[1759356290404,1.84161936,4314.9,4314.8,4.2076]
[1759356290707,2.25856936,4314.9,4314.8,4.4456]
[1759356291203,2.25856936,4314.9,4314.8,4.2076]
[1759356291399,1.84161936,4314.9,4314.8,4.4456]
[1759356291601,1.84161936,4314.9,4314.8,4.2076]
[1759356291896,0.75751936,4314.9,4314.8,4.4446]
[1759356292204,1.29571936,4314.9,4314.8,5.1923]
[1759356292393,1.29571936,4314.9,4314.8,4.4446]
[1759356292800,1.84161936,4314.9,4314.8,4.4446]
[1759356293006,2.25856936,4314.9,4314.8,4.4446]
[1759356294203,1.84161936,4314.9,4314.8,4.4446]
[1759356295709,2.25856936,4314.9,4314.8,4.4446]
[1759356295909,1.84161936,4314.9,4314.8,4.4446]
[1759356296610,2.25856936,4314.9,4314.8,3.4448]
[1759356296905,1.53009,4314.5,4314.4,40.8]
[1759356297105,1.53009,4314.5,4314.4,41.037]
[1759356297307,1.1131,4314.5,4314.4,41.037]
[1759356297910,1.53009,4314.5,4314.4,41.037]
[1759356299310,1.53009,4314.5,4314.4,41.7574]
[1759356300308,1.87096976,4314.5,4314.4,41.7574]
[1759356301212,0.00271936,4314.9,4314.8,1.7431]
[1759356301504,0.00271936,4314.9,4314.8,5.84337976]
[1759356302809,0.3148,4316.0,4315.0,0.1665]
[1759356303013,1.6363,4316.0,4315.9,4.9481]
[1759356303205,0.7985,4316.0,4315.9,5.1851]
[1759356303411,0.7985,4316.0,4315.9,45.9851]
[1759356303613,0.7985,4316.4,4315.9,45.2675]
[1759356303815,1.49307976,4316.5,4316.4,1.0227]
[1759356304014,1.49590081,4316.5,4316.4,1.9773]
[1759356304315,1.97980081,4316.5,4316.4,1.9773]
[1759356304712,1.97980081,4316.5,4316.4,5.1851]
[1759356304912,0.80132105,4316.5,4316.4,5.1851]
[1759356305113,1.45680081,4316.5,4316.4,5.1851]
[1759356305415,0.00282105,4316.5,4316.4,5.1851]
[1759356308420,0.0177,4316.6,4316.5,1.0155]
[1759356308608,0.0177,4316.6,4316.5,1.7375]
[1759356308810,0.0177,4316.6,4316.5,78.9205]
[1759356309109,0.0177,4316.6,4316.5,84.2212]
[1759356309517,0.02042711,4316.6,4316.5,84.2212]
[1759356309711,0.02042711,4316.6,4316.5,42.8382]
[1759356309915,0.02042711,4316.6,4316.5,79.2202]
[1759356310510,0.02042711,4316.6,4316.5,42.5375]
[1759356310710,0.02042711,4316.6,4316.5,78.9175]
[1759356312011,0.02042711,4316.6,4316.5,79.2182]
[1759356312610,0.02042711,4316.6,4316.5,42.8382]
[1759356312806,0.02042711,4316.6,4316.5,79.2162]
[1759356313016,0.02042711,4316.6,4316.5,84.2162]
[1759356313214,0.02042711,4316.6,4316.5,86.5428393]
[1759356313414,0.01217872,4316.9,4316.8,1.0227]
[1759356313614,0.3146,4318.5,4316.8,1.0227]
[1759356313615,0.7985,4318.1,4317.8,1.7049]
[1759356313811,0.41663,4318.3,4317.8,5.1497]
[1759356314013,0.41664,4318.2,4317.8,45.9497]
[1759356314211,1.3435,4317.9,4317.8,45.2675]
[1759356314519,1.3435,4317.9,4317.8,45.9497]
[1759356314520,0.02374426,4317.9,4317.8,45.9497]
[1759356315414,0.82224426,4317.9,4317.8,45.9497]
[1759356316012,0.02374426,4317.9,4317.8,45.9497]
[1759356316414,0.82224426,4317.9,4317.8,45.9497]
[1759356317520,0.02374426,4317.9,4317.8,45.9497]
[1759356319115,1.6361,4319.0,4318.9,1.6812]
[1759356319416,0.7985,4319.2,4319.1,1.6812]
[1759356319617,0.7985,4319.2,4319.1,1.9182]
[1759356320117,1.32450153,4319.2,4319.1,1.92114431]
[1759356320718,1.32450153,4319.2,4319.1,42.72114431]
[1759356321220,0.00300153,4319.2,4319.1,42.72114431]
[1759356321716,0.78850153,4319.2,4319.1,42.06264431]
[1759356321922,0.78850153,4319.2,4319.1,42.69734431]
[1759356322420,0.78850153,4319.2,4319.1,41.82564431]
[1759356322619,0.78850153,4319.2,4319.1,42.06264431]
[1759356323326,0.00300153,4319.2,4319.1,42.69734431]
[1759356323520,0.77320153,4319.2,4319.1,42.69734431]
[1759356324126,0.00300153,4319.2,4319.1,42.69734431]
[1759356326527,0.7702,4320.2,4319.1,47.06264431]
[1759356326726,0.7702,4320.2,4320.1,4.8435]
[1759356326924,1.3035,4320.2,4320.1,5.0805]
[1759356327122,2.22734,4320.2,4320.1,45.2515]
[1759356327629,2.23027815,4320.2,4320.1,45.2515]
[1759356329127,2.23027815,4320.2,4320.1,41.037]
[1759356329936,2.23027815,4320.2,4320.1,40.8]
[1759356330232,7.23027815,4320.2,4320.1,41.037]
[1759356331026,1.30643815,4320.2,4320.1,40.8]
[1759356331228,9.04951745,4320.2,4320.1,41.037]
[1759356332124,9.04951745,4320.2,4320.1,0.237]
[1759356332125,9.55691745,4320.2,4320.1,0.237]
[1759356332325,7.88417875,4320.2,4320.1,0.237]
[1759356332623,1.8109,4319.7,4319.6,4.2145]
[1759356332824,2.4648006,4319.7,4319.6,4.4515]
[1759356333124,2.8812906,4319.7,4319.6,45.2515]
[1759356333530,2.22739,4319.7,4319.6,45.2515]
[1759356333730,2.8812906,4319.7,4319.6,45.2515]
[1759356334827,1.4241006,4319.9,4319.8,1.0067]
[1759356335030,1.8405706,4319.9,4319.8,1.8727]
[1759356335229,2.3738706,4319.9,4319.8,1.8727]
[1759356335626,2.8812706,4319.9,4319.8,1.2437]
[1759356335825,1.18669,4319.7,4319.6,40.8]
[1759356336031,1.18669,4319.7,4319.6,41.037]
[1759356336225,1.18669,4319.7,4319.6,40.8]
[1759356336425,1.18669,4319.7,4319.1,3.21074431]
[1759356336426,1.3035,4319.2,4319.1,4.84644431]
[1759356336631,0.9520006,4319.5,4319.1,5.08344431]
[1759356336831,0.7702,4319.4,4319.3,1.6357]
[1759356337031,0.7702,4319.4,4319.3,1.8727]
[1759356337635,1.3035,4319.4,4319.3,1.8727]
[1759356337836,1.9574006,4319.4,4319.3,1.8727]
[1759356338340,1.4241006,4319.4,4319.3,1.8727]
[1759356338832,1.7222006,4320.0,4319.3,1.2437]
[1759356339043,1.0683,4320.0,4319.9,1.6357]
[1759356339240,2.24928355,4320.0,4319.9,1.8727]
[1759356339531,0.77313815,4320.2,4320.0,0.629]
[1759356339731,0.77313815,4320.2,4320.1,1.8727]
[1759356340133,0.00293815,4320.2,4320.1,1.8727]
[1759356340528,0.00293815,4320.2,4320.1,42.6727]
[1759356341234,1.42703875,4320.2,4320.1,42.0437]
[1759356341434,1.42703875,4320.2,4320.1,42.6727]
[1759356341930,1.84347875,4320.2,4320.1,41.5422]
[1759356342335,1.9591389,4320.2,4320.1,41.3052]
[1759356342546,1.9591389,4320.2,4320.1,41.5422]
[1759356343135,2.48723261,4320.2,4320.1,41.5422]
[1759356344338,7.48723261,4320.2,4320.1,40.8]
[1759356344539,1.8109,4319.8,4319.1,0.00294431]
[1759356344739,0.41656,4319.0,4318.9,3.2078]
[1759356345035,2.87856075,4319.0,4318.9,44.2448]
[1759356345240,3.40665446,4319.0,4318.9,44.2448]
[1759356345839,3.40665446,4319.0,4318.9,44.24657317]
[1759356346342,3.40665446,4319.0,4318.9,41.03877317]
[1759356346642,1.8109,4318.4,4318.3,4.2145]
[1759356346940,1.83000277,4318.4,4318.3,5.0805]
[1759356347143,1.83000277,4318.4,4318.3,1.8727]
[1759356347737,1.83000277,4318.4,4318.3,1.24567504]
[1759356347940,2.33740277,4318.4,4318.3,1.24567504]
[1759356348439,2.33740277,4318.4,4318.3,1.00867504]
[1759356348638,2.33740277,4318.4,4318.3,0.23897504]
[1759356348944,7.33740277,4318.4,4318.3,0.00197504]
[1759356349245,7.33740277,4318.4,4318.3,0.74417504]
[1759356349439,7.33740277,4318.4,4318.3,1.24567504]
[1759356349944,7.33740277,4318.4,4318.3,0.23897504]
[1759356350340,0.41666,4317.9,4317.8,40.8]
[1759356350547,1.18686,4317.9,4317.8,41.037]
[1759356351046,1.18686,4317.9,4317.8,40.8]
[1759356351249,1.18686,4317.9,4317.8,41.037]
[1759356351547,1.18686,4317.9,4317.8,41.0394554]
[1759356351743,1.18686,4317.9,4317.8,40.8024554]
[1759356351943,1.18686,4317.9,4317.8,41.0394554]
[1759356353246,1.18686,4317.9,4317.8,40.8024554]
[1759356353446,1.18686,4317.9,4317.8,41.0394554]
[1759356355941,1.18686,4317.9,4317.8,40.8024554]
[1759356356142,1.72823,4317.2,4317.1,4.2623]
[1759356356450,1.72823,4317.2,4317.1,5.1292]
[1759356356647,1.72823,4317.2,4317.1,41.8545]
[1759356356848,1.72823,4317.2,4317.1,42.0915]
[1759356357239,1.72823,4317.2,4317.1,41.33031856]
[1759356357442,1.72823,4317.2,4317.1,41.03981856]
[1759356358245,2.24683,4317.2,4317.1,0.76731856]
[1759356358846,2.24683,4317.2,4317.1,0.23981856]
[1759356359151,2.24683,4317.2,4317.1,0.76731856]
[1759356360152,2.24683,4317.2,4317.1,0.23981856]
[1759356360850,2.24683,4317.2,4317.1,0.00281856]
[1759356361050,2.24683,4317.2,4317.1,0.23981856]
[1759356362250,2.24683,4317.2,4317.1,0.00281856]
[1759356362449,2.24683,4317.2,4317.1,0.23981856]
[1759356362847,2.24683,4317.2,4317.1,0.76731856]
[1759356363048,2.24683,4317.2,4317.1,1.92421856]
[1759356363354,3.2078,4317.4,4317.3,1.6844]
[1759356363653,5.23405,4318.0,4317.9,1.6844]
[1759356363849,5.23405,4318.0,4317.9,1.9214]
[1759356364051,5.23405,4318.0,4317.9,1.2915]
[1759356364957,3.2078,4318.0,4317.9,1.9214]
[1759356367157,3.9947,4318.0,4317.9,1.9214]
[1759356367856,4.5193,4318.0,4317.9,1.9214]
[1759356368058,3.5218,4318.0,4317.6,0.5275]
[1759356368354,1.8301,4317.7,4317.6,1.0545]
[1759356368552,1.8301,4317.7,4317.6,1.9214]
[1759356369062,0.7869,4317.7,4317.6,1.9214]
[1759356369251,0.7869,4317.7,4317.6,42.7214]
[1759356369853,0.7869,4317.9,4317.8,1.6844]
[1759356370951,3.2078,4318.0,4317.9,0.6299]
[1759356371155,3.2078,4318.0,4317.9,1.9214]
[1759356372056,3.9947,4318.0,4317.9,1.9214]
[1759356372453,3.2078,4318.0,4317.9,1.9214]
[1759356372651,3.2078,4318.6,4318.0,0.6299]
[1759356372858,0.7869,4319.2,4319.1,1.6844]
[1759356373158,0.7869,4319.2,4319.1,1.9214]
[1759356373456,0.7869,4319.5,4319.4,1.0545]
[1759356373658,2.1441,4319.5,4319.4,1.0545]
[1759356373858,1.3115,4319.1,4319.0,1.0545]
[1759356374155,0.7869,4319.1,4319.0,42.7214]
[1759356375356,0.7869,4319.1,4319.0,42.0915]
[1759356376355,0.7869,4319.1,4319.0,42.7214]
[1759356377362,0.7869,4319.1,4319.0,42.4844]
[1759356377563,0.7869,4319.1,4319.0,42.0915]
[1759356378562,0.7869,4319.1,4319.0,41.8545]
[1759356378767,0.7869,4319.1,4319.0,42.0915]
[1759356379065,0.7869,4319.1,4319.0,42.7214]
[1759356380259,0.7869,4319.1,4319.0,40.8]
[1759356380460,0.7869,4319.1,4319.0,41.6669]
[1759356380862,2.0457,4319.5,4319.4,1.0269]
[1759356381062,2.0457,4319.5,4319.4,1.2639]
[1759356381561,3.93827,4320.0,4319.4,1.2639]
[1759356381562,3.5218,4320.0,4319.5,0.606]
[1759356381768,0.7473,4319.9,4319.8,1.5854]
[1759356381957,1.2406,4319.9,4319.8,1.8224]
[1759356384170,1.2406,4319.9,4319.8,1.2164]
[1759356385376,1.7613,4319.9,4319.8,1.2164]
[1759356385769,1.7613,4319.9,4319.8,1.8198]
[1759356387474,0.7235,4320.1,4319.8,1.2164]
[1759356387674,0.00293815,4320.2,4320.0,1.6086]
[1759356387876,0.00293815,4320.2,4320.1,1.8456]
[1759356388277,0.72643815,4320.2,4320.1,42.6456]
[1759356388477,0.00293815,4320.2,4320.1,42.6456]
[1759356390273,0.72643815,4320.2,4320.1,42.6456]
[1759356390479,0.00293815,4320.2,4320.1,42.6456]
[1759356391180,1.231,4321.2,4321.1,1.0052]
[1759356391377,1.231,4321.2,4321.1,1.8456]
[1759356391577,1.7517,4321.2,4321.1,1.2422]
[1759356391779,1.7517,4321.2,4321.1,0.7178]
[1759356391984,1.0282,4321.2,4321.1,0.237]
[1759356392188,1.231,4320.7,4320.6,4.213]
[1759356392483,1.231,4320.7,4320.6,5.05530728]
[1759356394485,0.7235,4320.7,4320.6,5.05530728]
[1759356394679,1.231,4320.7,4320.6,1.84750728]
[1759356397190,1.0309,4321.0,4320.9,1.6086]
[1759356397489,0.00254274,4321.2,4321.1,1.6086]
[1759356397686,0.00254274,4321.2,4321.1,4.8164]
[1759356397887,0.00254274,4321.2,4321.1,45.6164]
[1759356398187,0.72604274,4321.2,4321.1,45.013]
[1759356398391,0.72604274,4321.2,4321.1,42.0422]
[1759356398985,0.00254274,4321.2,4321.1,42.6456]
[1759356399489,0.00254274,4321.2,4321.1,47.6456]
[1759356400490,0.00254274,4321.2,4321.1,42.6456]
[1759356403197,1.75187,4322.0,4321.9,1.74]
[1759356403495,1.75187,4322.0,4321.9,1.977]
[1759356404198,1.75475533,4322.0,4321.9,1.977]
[1759356404391,1.75475533,4322.0,4321.9,1.2422]
[1759356404598,1.75475533,4322.0,4321.9,0.7178]
[1759356405096,2.47825533,4322.0,4321.9,0.7178]
[1759356405500,2.06198533,4322.0,4321.9,0.7178]
[1759356405896,2.06198533,4322.0,4321.9,1.4526]
[1759356406096,1.23388533,4322.0,4321.9,1.977]
[1759356406302,1.75458533,4322.0,4321.9,1.977]
[1759356406498,2.06198533,4322.0,4321.9,1.977]
[1759356407697,2.06198533,4322.0,4321.9,1.2422]
[1759356408404,1.7517,4321.3,4321.2,1.74]
[1759356408597,0.5075,4321.3,4321.2,1.977]
[1759356408792,0.7235,4321.9,4321.3,0.7348]
[1759356409101,2.16799,4321.8,4321.7,1.2156]
[1759356409301,2.16799,4321.8,4321.7,1.4526]
[1759356409501,1.7517,4321.8,4321.7,1.977]
[1759356410301,1.7517,4321.8,4321.7,1.74]
[1759356410501,1.7517,4321.8,4321.7,1.977]
[1759356411302,0.5075,4321.8,4321.7,1.977]
[1759356411803,1.231,4321.8,4321.7,1.977]
[1759356412904,1.231,4321.8,4321.7,1.74]
[1759356413204,1.64729,4321.8,4321.7,1.976]
[1759356413609,1.231,4321.8,4321.7,1.976]
[1759356414509,0.92379,4321.8,4321.7,1.976]
[1759356414703,0.70528533,4322.0,4321.7,1.976]
[1759356414704,0.00288533,4322.0,4321.9,1.6876]
[1759356415404,0.00288533,4322.0,4321.9,42.4876]
[1759356417997,0.70528533,4322.0,4321.9,78.8156]
[1759356418202,1.12155533,4322.0,4321.9,42.7236]
[1759356418403,0.70528533,4322.0,4321.9,42.7236]
[1759356418910,0.00288533,4322.0,4321.9,42.7236]
[1759356419402,0.00288533,4322.0,4321.9,42.4876]
[1759356419598,0.00288533,4322.0,4321.9,42.7236]
[1759356420509,0.00288533,4322.0,4321.9,43.37684759]
[1759356423014,3.2078,4322.6,4321.9,47.66324759]
[1759356423307,1.59052,4323.6,4323.5,1.6876]
[1759356423507,2.16186123,4323.6,4323.5,1.9236]
[1759356424107,1.65205416,4323.6,4323.5,1.9236]
[1759356424611,0.00215416,4323.6,4323.5,2.2212]
[1759356424810,0.47415416,4323.6,4323.5,1.9852]
[1759356425012,1.17655416,4323.6,4323.5,1.9236]
[1759356425205,1.17655416,4323.6,4323.5,42.7236]
[1759356425606,1.82980175,4323.6,4323.5,41.036]
[1759356425808,6.82980175,4323.6,4323.5,40.8]
[1759356426307,0.7024,4323.0,4322.8,0.7136]
[1759356426508,0.7024,4323.0,4322.9,1.21]
[1759356426708,1.6499,4323.0,4322.9,42.7236]
[1759356426913,1.6499,4323.0,4322.9,42.4876]
[1759356427313,1.6499,4323.0,4322.9,42.7236]
[1759356428008,1.6499,4323.0,4322.9,42.4876]
[1759356428214,2.30314759,4323.0,4322.9,42.7236]
[1759356428616,2.30314759,4323.0,4322.9,42.4876]
[1759356428916,2.30314759,4323.0,4322.9,42.7236]
[1759356429118,2.30314759,4323.0,4322.9,42.4876]
[1759356429416,2.61184759,4323.0,4322.9,42.01]
[1759356430111,1.9586,4323.0,4322.9,42.01]
[1759356430311,1.59057,4323.1,4323.0,1.6876]
[1759356430513,2.24381759,4323.1,4323.0,1.6876]
[1759356430707,2.24381759,4323.1,4323.0,1.9236]
[1759356431019,2.71931759,4323.1,4323.0,1.9236]
[1759356432119,1.12524759,4323.1,4323.0,1.9236]
[1759356432319,3.2078,4323.2,4323.0,1.5076]
[1759356432615,3.2078,4323.2,4323.1,1.6876]
[1759356432823,0.00215416,4323.6,4323.5,1.2716]
[1759356433014,0.00215416,4323.6,4323.5,2.2212]
[1759356434421,0.00215416,4323.6,4323.5,43.0212]
[1759356435917,0.00215416,4323.6,4323.5,42.7852]
[1759356436122,0.00215416,4323.6,4323.5,43.0212]
[1759356436525,0.00215416,4323.6,4323.5,42.7852]
[1759356436721,0.00215416,4323.6,4323.5,43.0212]
[1759356436923,1.77392175,4323.6,4323.5,42.7852]
[1759356437126,1.77392175,4323.6,4323.5,42.7236]
[1759356437423,1.35780175,4323.6,4323.5,42.7236]
[1759356437724,0.65540175,4323.6,4323.5,42.7236]
[1759356437927,0.65540175,4323.6,4323.5,43.0212]
[1759356438620,0.65540175,4323.6,4323.5,42.7852]
[1759356438816,0.65540175,4323.6,4323.5,43.0212]
[1759356439724,1.07152175,4323.6,4323.5,43.0212]
[1759356439916,1.77392175,4323.6,4323.5,43.0212]
[1759356440115,1.77392175,4323.6,4323.5,42.7236]
[1759356441032,1.77392175,4323.6,4323.5,42.4876]
[1759356441327,1.07152175,4323.6,4323.5,43.0299]
[1759356441621,1.07152175,4323.6,4323.5,42.4876]
[1759356441827,1.40820175,4323.6,4323.5,42.7236]
[1759356442029,1.82432175,4323.6,4323.5,42.7236]
[1759356442520,0.65540175,4323.6,4323.5,43.0299]
[1759356442721,1.07152175,4323.6,4323.5,43.0299]
[1759356442921,3.2078,4324.4,4324.3,0.967]
[1759356443120,3.2078,4324.4,4324.3,2.56794759]
[1759356443321,3.2078,4324.4,4324.3,1.9147]
[1759356444025,3.21079237,4324.4,4324.3,1.91730357]
[1759356444535,3.21079237,4324.4,4324.3,42.71730357]
[1759356444825,3.21079237,4324.4,4324.3,43.37055116]
[1759356445020,0.00299237,4324.4,4324.3,46.57835116]
[1759356446220,0.00299237,4324.4,4324.3,45.68910357]
[1759356446423,0.00299237,4324.4,4324.3,82.00210357]
[1759356447929,0.00299237,4324.4,4324.3,82.65535116]
[1759356448430,0.00299237,4324.4,4324.3,82.65335116]
[1759356448930,0.74299237,4324.4,4324.3,45.92510357]
[1759356449322,0.00299237,4324.4,4324.3,45.92510357]
[1759356449930,0.41903237,4324.4,4324.3,45.92510357]
[1759356450130,0.00299237,4324.4,4324.3,45.92510357]
[1759356450929,0.00299237,4324.4,4324.3,46.57835116]
[1759356454121,0.00299237,4324.4,4324.3,46.34235116]
[1759356454320,0.00299237,4324.4,4324.3,81.99610357]
[1759356456936,0.00299237,4324.4,4324.3,45.92510357]
[1759356461834,0.00299237,4324.4,4324.3,45.68910357]
[1759356462036,1.39623996,4324.4,4324.3,42.71730357]
[1759356462240,0.74299237,4324.4,4324.3,42.71730357]
[1759356462740,0.00299237,4324.4,4324.3,42.71730357]
[1759356463642,7.12783237,4324.4,4324.3,0.00260357]
[1759356463848,10.33563237,4324.4,4324.3,0.00260357]
[1759356464044,10.33563237,4324.4,4324.3,0.23860357]
[1759356464847,10.33563237,4324.4,4324.3,0.00260357]
[1759356465047,10.33563237,4324.4,4324.3,0.23860357]
[1759356465343,10.33563237,4324.4,4323.8,40.8]
[1759356465344,1.15609,4323.9,4323.8,40.8]
[1759356465550,2.0129,4323.5,4323.4,0.4934]
[1759356465846,2.0129,4323.5,4323.4,0.236]
[1759356466038,2.0129,4323.5,4323.4,41.036]
[1759356466236,2.0129,4323.5,4323.4,41.03801236]
[1759356466442,2.0129,4323.5,4323.4,41.77251236]
[1759356466643,2.42902,4323.5,4323.4,41.03801236]
[1759356467051,2.0129,4323.5,4323.4,40.80201236]
[1759356467241,2.0129,4323.5,4323.4,41.03801236]
[1759356467441,2.0129,4323.5,4323.4,41.77251236]
[1759356467642,1.7088,4323.5,4323.4,41.77251236]
[1759356468448,2.0129,4323.5,4323.4,41.77251236]
[1759356468649,2.0129,4323.5,4323.4,41.03801236]
[1759356468949,2.0129,4323.5,4323.4,41.53651236]
[1759356469149,7.42902,4323.5,4323.4,40.80201236]
[1759356469345,7.0129,4323.5,4323.4,41.03801236]
[1759356469550,7.42902,4323.5,4323.4,41.03801236]
[1759356469851,7.42902,4323.5,4323.4,41.77251236]
[1759356470047,7.0129,4323.5,4323.4,41.77251236]
[1759356470548,7.42902,4323.5,4323.4,41.77251236]
[1759356471750,7.42902,4323.5,4323.4,41.03801236]
[1759356472142,6.2267,4323.5,4323.4,41.77251236]
[1759356472347,4.3978,4323.9,4323.8,1.7332]
[1759356472548,1.19,4323.9,4323.8,1.9692]
[1759356472949,3.21079237,4324.4,4323.8,1.2347]
[1759356473256,3.21079237,4324.4,4324.3,1.7332]
[1759356473454,0.00299237,4324.4,4324.3,1.9692]
[1759356473752,0.00299237,4324.4,4324.3,42.7692]
[1759356477258,0.00299237,4324.4,4324.3,43.53698986]
[1759356479749,1.19,4325.4,4324.3,43.53698986]
[1759356480060,4.3853,4325.5,4325.4,1.6184]
[1759356480259,3.2078,4325.5,4325.4,1.8544]
[1759356480459,2.8251,4325.8,4325.7,1.6184]
[1759356480659,2.3675,4325.8,4325.7,1.8544]
[1759356480861,3.2078,4326.0,4325.9,0.9312]
[1759356481061,5.1447027,4326.0,4325.9,1.6184]
[1759356481259,5.1447027,4326.0,4325.9,1.1672]
[1759356482156,4.8452027,4326.0,4325.9,1.8544]
[1759356482354,4.3876027,4326.0,4325.9,1.8544]
[1759356483063,4.8452027,4326.0,4325.9,1.8544]
[1759356483251,3.2101027,4326.0,4325.9,1.8544]
[1759356483561,4.3876027,4326.0,4325.9,1.8544]
[1759356483952,4.8452027,4326.0,4325.9,1.8544]
[1759356484454,0.0023027,4326.0,4325.9,1.8544]
[1759356484957,0.0023027,4326.0,4325.9,42.6544]